[Event "Live Chess"]
[Site "Chess.com"]
[Date "2023.09.16"]
[Round "-"]
[White "Sophowl"]
[Black "samurai0718"]
[Result "0-1"]
[WhiteElo "256"]
[BlackElo "1348"]
[TimeControl "900+5"]
[EndTime "16:32:38 PDT"]
[Termination "samurai0718 venceu por xeque-mate"]

1. d4 {[%clk 0:15:01.3]} 1... Nf6 {[%clk 0:14:58.2]} 2. e4 {[%clk 0:15:01.2]}
2... d6 {[%clk 0:14:58.3]} 3. f3 {[%clk 0:15:01.1]} 3... g6 {[%clk 0:15:00.5]}
4. c3 {[%clk 0:14:57.4]} 4... Bg7 {[%clk 0:14:57.3]} 5. Bc4 {[%clk 0:14:53.9]}
5... O-O {[%clk 0:14:44.7]} 6. h4 {[%clk 0:14:42.8]} 6... Nc6 {[%clk 0:14:36.9]}
7. b3 {[%clk 0:14:32.3]} 7... e5 {[%clk 0:14:25.9]} 8. Bg5 {[%clk 0:14:22.5]}
8... Ne7 {[%clk 0:14:07.8]} 9. Rh3 {[%clk 0:14:14.2]} 9... Bxh3 {[%clk
0:14:09.8]} 10. gxh3 {[%clk 0:14:16.7]} 10... Qd7 {[%clk 0:14:11.6]} 11. dxe5
{[%clk 0:13:58.5]} 11... Ne8 {[%clk 0:13:13.8]} 12. a4 {[%clk 0:13:35.8]} 12...
Bxe5 {[%clk 0:13:10]} 13. Bb5 {[%clk 0:13:30.4]} 13... c6 {[%clk 0:13:08.1]} 14.
Bc4 {[%clk 0:13:16.7]} 14... Bg3+ {[%clk 0:13:07.6]} 15. Ke2 {[%clk 0:13:08.8]}
15... b5 {[%clk 0:12:48.8]} 16. axb5 {[%clk 0:13:10.6]} 16... cxb5 {[%clk
0:12:53.7]} 17. Bd5 {[%clk 0:12:40.3]} 17... Nxd5 {[%clk 0:12:47]} 18. exd5
{[%clk 0:12:42.4]} 18... Nc7 {[%clk 0:12:47.4]} 19. Ra5 {[%clk 0:12:03]} 19...
Rfe8+ {[%clk 0:12:44.3]} 20. Kf1 {[%clk 0:12:03.9]} 20... Re1+ {[%clk
0:12:22.5]} 21. Qxe1 {[%clk 0:10:40.2]} 21... Bxe1 {[%clk 0:12:24.8]} 22. Kxe1
{[%clk 0:10:43.7]} 22... Nxd5 {[%clk 0:12:22.4]} 23. Ne2 {[%clk 0:10:31.9]}
23... a6 {[%clk 0:12:04.5]} 24. c4 {[%clk 0:10:29.6]} 24... Qxh3 {[%clk
0:11:32.7]} 25. Ng1 {[%clk 0:10:14]} 25... Re8+ {[%clk 0:11:21.1]} 26. Kd1
{[%clk 0:10:09.7]} 26... Qf1+ {[%clk 0:11:23.2]} 27. Kc2 {[%clk 0:10:09.2]}
27... Qf2+ {[%clk 0:10:55]} 28. Bd2 {[%clk 0:09:56.8]} 28... Qxg1 {[%clk
0:10:42.6]} 29. Nc3 {[%clk 0:09:50.5]} 29... Nb4+ {[%clk 0:10:22.9]} 30. Kb2
{[%clk 0:09:43.2]} 30... Qd4 {[%clk 0:10:12.7]} 31. Ka3 {[%clk 0:09:36.5]} 31...
Nc2+ {[%clk 0:10:14.5]} 32. Ka2 {[%clk 0:09:35.2]} 32... Qxd2 {[%clk 0:10:16.6]}
33. Rxa6 {[%clk 0:09:35.5]} 33... Nb4+ {[%clk 0:10:18.4]} 34. Ka3 {[%clk
0:09:35.5]} 34... Nxa6 {[%clk 0:10:18.1]} 35. Nxb5 {[%clk 0:09:36.8]} 35... Qb4+
{[%clk 0:10:19.4]} 36. Ka2 {[%clk 0:09:32.7]} 36... Re2+ {[%clk 0:10:23.2]} 37.
Kb1 {[%clk 0:09:34.4]} 37... Qe1# {[%clk 0:10:27.3]} 0-1

[Event "Live Chess"]
[Site "Chess.com"]
[Date "2023.09.16"]
[Round "-"]
[White "Larissa1413"]
[Black "Tercette"]
[Result "1-0"]
[WhiteElo "1918"]
[BlackElo "157"]
[TimeControl "900+5"]
[EndTime "16:32:48 PDT"]
[Termination "Larissa1413 venceu por xeque-mate"]

1. d4 {[%clk 0:14:44.6]} 1... Nc6 {[%clk 0:15:01.5]} 2. c4 {[%clk 0:14:46]} 2...
Nxd4 {[%clk 0:15:02.4]} 3. Qxd4 {[%clk 0:14:48.1]} 3... c5 {[%clk 0:15:02.2]} 4.
Qd1 {[%clk 0:14:49.7]} 4... d5 {[%clk 0:15:03.9]} 5. cxd5 {[%clk 0:14:50.8]}
5... Nf6 {[%clk 0:15:06.6]} 6. Nc3 {[%clk 0:14:52.4]} 6... e6 {[%clk 0:15:08.2]}
7. e4 {[%clk 0:14:51.5]} 7... exd5 {[%clk 0:15:11.8]} 8. exd5 {[%clk 0:14:53.3]}
8... Bd6 {[%clk 0:15:10.1]} 9. Bd3 {[%clk 0:14:50.8]} 9... O-O {[%clk
0:15:12.4]} 10. Nf3 {[%clk 0:14:52.2]} 10... Re8+ {[%clk 0:15:15.7]} 11. Be3
{[%clk 0:14:54.3]} 11... Nd7 {[%clk 0:15:08.9]} 12. O-O {[%clk 0:14:55.6]} 12...
b5 {[%clk 0:15:10.8]} 13. Bc2 {[%clk 0:14:56.9]} 13... b4 {[%clk 0:15:14.5]} 14.
Qd3 {[%clk 0:14:58.6]} 14... bxc3 {[%clk 0:15:18.3]} 15. Qxh7+ {[%clk
0:15:01.3]} 15... Kf8 {[%clk 0:15:06.4]} 16. Qh8+ {[%clk 0:15:04.4]} 16... Ke7
{[%clk 0:15:09.6]} 17. Bg5+ {[%clk 0:15:07.4]} 17... Nf6 {[%clk 0:15:05.9]} 18.
Rfe1+ {[%clk 0:14:59.8]} 18... Kd7 {[%clk 0:15:08.1]} 19. Bf5+ {[%clk
0:14:59.9]} 19... Kc7 {[%clk 0:15:06.7]} 20. Rxe8 {[%clk 0:14:57.2]} 20... Qd7
{[%clk 0:15:04.6]} 21. Bxd7 {[%clk 0:14:58.8]} 21... Bxd7 {[%clk 0:15:07.7]} 22.
Rxa8 {[%clk 0:15:01]} 22... Ne4 {[%clk 0:15:06.6]} 23. Qb8# {[%clk 0:15:02.7]}
1-0

[Event "Live Chess"]
[Site "Chess.com"]
[Date "2023.09.16"]
[Round "-"]
[White "Joasgodoy"]
[Black "Japaawz"]
[Result "1-0"]
[WhiteElo "678"]
[BlackElo "409"]
[TimeControl "900+5"]
[EndTime "16:33:33 PDT"]
[Termination "Joasgodoy venceu por xeque-mate"]

1. e4 {[%clk 0:14:52.7]} 1... g6 {[%clk 0:14:58.1]} 2. Bc4 {[%clk 0:14:54.4]}
2... Bh6 {[%clk 0:14:59.5]} 3. Qf3 {[%clk 0:14:56.5]} 3... Nf6 {[%clk
0:14:55.5]} 4. d3 {[%clk 0:14:57.4]} 4... O-O {[%clk 0:14:58.1]} 5. Bxh6 {[%clk
0:14:58]} 5... Kh8 {[%clk 0:14:48.6]} 6. Bxf8 {[%clk 0:14:26.7]} 6... Qxf8
{[%clk 0:14:51.5]} 7. Nc3 {[%clk 0:14:27.5]} 7... Nc6 {[%clk 0:14:55.4]} 8.
O-O-O {[%clk 0:14:29.7]} 8... Qh6+ {[%clk 0:14:55.2]} 9. Kb1 {[%clk 0:14:27.2]}
9... d6 {[%clk 0:14:54]} 10. Bxf7 {[%clk 0:14:27.5]} 10... Be6 {[%clk
0:14:57.1]} 11. Bxe6 {[%clk 0:14:29.2]} 11... Na5 {[%clk 0:14:54.8]} 12. Nge2
{[%clk 0:14:22.2]} 12... a6 {[%clk 0:14:52.7]} 13. e5 {[%clk 0:14:14.9]} 13...
dxe5 {[%clk 0:14:53.4]} 14. d4 {[%clk 0:14:00.7]} 14... e4 {[%clk 0:13:43.1]}
15. Nxe4 {[%clk 0:13:59.2]} 15... Nxe4 {[%clk 0:13:45.7]} 16. Rhf1 {[%clk
0:13:21.8]} 16... Rf8 {[%clk 0:13:37.9]} 17. Qxe4 {[%clk 0:13:17.2]} 17... Qxh2
{[%clk 0:13:39.6]} 18. Rh1 {[%clk 0:13:11.3]} 18... Qd6 {[%clk 0:13:35.9]} 19.
Qh4 {[%clk 0:13:02.4]} 19... Nc4 {[%clk 0:13:33.3]} 20. Qxh7# {[%clk 0:13:03.8]}
1-0

[Event "Live Chess"]
[Site "Chess.com"]
[Date "2023.09.16"]
[Round "-"]
[White "FerreiraPedro"]
[Black "Luisgustavo100"]
[Result "1-0"]
[WhiteElo "1398"]
[BlackElo "944"]
[TimeControl "900+5"]
[EndTime "16:34:16 PDT"]
[Termination "FerreiraPedro venceu por desistência"]

1. Nf3 {[%clk 0:15:00.4]} 1... d5 {[%clk 0:15:02.1]} 2. d4 {[%clk 0:15:04.3]}
2... e6 {[%clk 0:15:00.3]} 3. c4 {[%clk 0:15:06.4]} 3... c5 {[%clk 0:14:58.3]}
4. dxc5 {[%clk 0:15:09]} 4... Bxc5 {[%clk 0:15:00.5]} 5. cxd5 {[%clk 0:15:13.1]}
5... Qxd5 {[%clk 0:14:54.4]} 6. Qxd5 {[%clk 0:15:16.6]} 6... exd5 {[%clk
0:14:58]} 7. e3 {[%clk 0:15:20.6]} 7... Nf6 {[%clk 0:15:00]} 8. Bb5+ {[%clk
0:15:22.8]} 8... Bd7 {[%clk 0:15:01.7]} 9. Bxd7+ {[%clk 0:15:26.2]} 9... Nbxd7
{[%clk 0:15:05.2]} 10. Nc3 {[%clk 0:15:31.1]} 10... d4 {[%clk 0:15:07.4]} 11.
Nxd4 {[%clk 0:15:30.1]} 11... Bxd4 {[%clk 0:14:56.5]} 12. exd4 {[%clk
0:15:34.2]} 12... O-O {[%clk 0:14:59.6]} 13. O-O {[%clk 0:15:38.4]} 13... Rfe8
{[%clk 0:14:57.1]} 14. Bg5 {[%clk 0:15:42.5]} 14... Rad8 {[%clk 0:14:54]} 15.
Rfe1 {[%clk 0:15:42.6]} 15... Rxe1+ {[%clk 0:14:52.4]} 16. Rxe1 {[%clk
0:15:45.9]} 16... h6 {[%clk 0:14:54.7]} 17. Bh4 {[%clk 0:15:46.7]} 17... g5
{[%clk 0:14:46.9]} 18. Bg3 {[%clk 0:15:48.7]} 18... Nb6 {[%clk 0:14:42.9]} 19.
Be5 {[%clk 0:15:46.7]} 19... Re8 {[%clk 0:14:28.1]} 20. Kf1 {[%clk 0:15:41.6]}
20... Re6 {[%clk 0:13:42.5]} 21. d5 {[%clk 0:15:38]} 21... Nbxd5 {[%clk
0:13:40.8]} 22. Nxd5 {[%clk 0:15:15.9]} 22... Nxd5 {[%clk 0:13:41.4]} 23. Bg3
{[%clk 0:14:58.3]} 23... Rxe1+ {[%clk 0:13:37.6]} 24. Kxe1 {[%clk 0:15:03.2]}
24... Nf4 {[%clk 0:13:38]} 25. Bxf4 {[%clk 0:15:06.6]} 25... gxf4 {[%clk
0:13:41.9]} 26. Ke2 {[%clk 0:15:11.5]} 26... Kg7 {[%clk 0:13:43.3]} 27. Kf3
{[%clk 0:15:16.4]} 27... h5 {[%clk 0:13:38.1]} 28. Kxf4 {[%clk 0:15:21.3]} 28...
Kg6 {[%clk 0:13:42.1]} 29. h3 {[%clk 0:15:23.4]} 29... f5 {[%clk 0:13:45.4]} 30.
g4 {[%clk 0:15:26.8]} 30... hxg4 {[%clk 0:13:49]} 31. hxg4 {[%clk 0:15:31.7]}
31... fxg4 {[%clk 0:13:53.1]} 32. Kxg4 {[%clk 0:15:36.6]} 32... Kf6 {[%clk
0:13:56.8]} 33. f4 {[%clk 0:15:41]} 33... a5 {[%clk 0:13:55.4]} 34. a4 {[%clk
0:15:41.5]} 34... b6 {[%clk 0:13:57.9]} 35. b3 {[%clk 0:15:44.5]} 35... Ke6
{[%clk 0:13:45.4]} 36. f5+ {[%clk 0:15:48.6]} 36... Kf6 {[%clk 0:13:44.1]} 37.
Kf4 {[%clk 0:15:52.7]} 37... Ke7 {[%clk 0:13:43.5]} 38. Ke3 {[%clk 0:15:52]}
38... Kf6 {[%clk 0:13:46.8]} 39. Kf4 {[%clk 0:15:55.7]} 39... Ke7 {[%clk
0:13:49.9]} 40. Ke5 {[%clk 0:16:00.1]} 40... Kf7 {[%clk 0:13:50.6]} 41. f6
{[%clk 0:16:03.7]} 41... Ke8 {[%clk 0:13:50.9]} 42. Ke6 {[%clk 0:16:07.9]} 42...
Kf8 {[%clk 0:13:54.9]} 43. f7 {[%clk 0:16:11.7]} 43... Kg7 {[%clk 0:13:54.7]}
44. Ke7 {[%clk 0:16:16.6]} 1-0

[Event "Live Chess"]
[Site "Chess.com"]
[Date "2023.09.16"]
[Round "-"]
[White "Miinero"]
[Black "MNPedroh"]
[Result "0-1"]
[WhiteElo "1903"]
[BlackElo "1862"]
[TimeControl "900+5"]
[EndTime "16:35:03 PDT"]
[Termination "MNPedroh venceu por desistência"]

1. e4 {[%clk 0:15:00]} 1... e5 {[%clk 0:15:04.1]} 2. Nf3 {[%clk 0:15:03.7]} 2...
Nc6 {[%clk 0:15:08.8]} 3. Bc4 {[%clk 0:15:07.3]} 3... Nf6 {[%clk 0:15:13.3]} 4.
O-O {[%clk 0:15:08.8]} 4... Bc5 {[%clk 0:15:04.7]} 5. c3 {[%clk 0:15:11]} 5...
d6 {[%clk 0:15:07.2]} 6. d4 {[%clk 0:15:09.5]} 6... exd4 {[%clk 0:15:12.1]} 7.
cxd4 {[%clk 0:15:14.4]} 7... Bb6 {[%clk 0:15:16.7]} 8. Nc3 {[%clk 0:15:17]} 8...
O-O {[%clk 0:15:19]} 9. Bg5 {[%clk 0:15:21.6]} 9... h6 {[%clk 0:15:21.1]} 10.
Bh4 {[%clk 0:15:24.2]} 10... Bg4 {[%clk 0:15:24.8]} 11. Nd5 {[%clk 0:15:25.7]}
11... g5 {[%clk 0:15:20.7]} 12. Bg3 {[%clk 0:15:07]} 12... Nxd4 {[%clk
0:15:13.5]} 13. h3 {[%clk 0:15:04.5]} 13... Nxf3+ {[%clk 0:15:15]} 14. gxf3
{[%clk 0:15:07.6]} 14... Bxh3 {[%clk 0:15:18.8]} 15. Re1 {[%clk 0:15:04.7]}
15... Re8 {[%clk 0:15:06.5]} 16. Qb3 {[%clk 0:14:59]} 16... Be6 {[%clk 0:14:50]}
17. Nxb6 {[%clk 0:15:01.8]} 17... axb6 {[%clk 0:14:54.9]} 18. Bxe6 {[%clk
0:15:01.7]} 18... Rxe6 {[%clk 0:14:54.6]} 19. Rad1 {[%clk 0:15:01.8]} 19... Qe8
{[%clk 0:14:41.2]} 20. Qc3 {[%clk 0:14:54.4]} 20... Qc6 {[%clk 0:14:11.4]} 21.
Qxc6 {[%clk 0:14:52.3]} 21... bxc6 {[%clk 0:14:16.3]} 22. a3 {[%clk 0:14:54.5]}
22... Nh5 {[%clk 0:14:09.4]} 0-1

[Event "Live Chess"]
[Site "Chess.com"]
[Date "2023.09.16"]
[Round "-"]
[White "Capi-D-Vara"]
[Black "Arthur_Maciel"]
[Result "1-0"]
[WhiteElo "1279"]
[BlackElo "1114"]
[TimeControl "900+5"]
[EndTime "16:35:47 PDT"]
[Termination "Capi-D-Vara venceu por desistência"]

1. e4 {[%clk 0:15:02.2]} 1... c5 {[%clk 0:15:02.9]} 2. c3 {[%clk 0:15:05.7]}
2... Nc6 {[%clk 0:15:06.5]} 3. d4 {[%clk 0:15:09.8]} 3... cxd4 {[%clk
0:15:06.3]} 4. cxd4 {[%clk 0:15:14.7]} 4... e6 {[%clk 0:15:06.8]} 5. Nc3 {[%clk
0:15:16.6]} 5... Bb4 {[%clk 0:15:06.8]} 6. Be3 {[%clk 0:15:08.1]} 6... Nf6
{[%clk 0:14:42.2]} 7. Bd3 {[%clk 0:15:06.5]} 7... O-O {[%clk 0:14:29.9]} 8. Rc1
{[%clk 0:14:53.8]} 8... Qa5 {[%clk 0:14:08.1]} 9. a3 {[%clk 0:14:45.2]} 9...
Bxc3+ {[%clk 0:13:49.2]} 10. Rxc3 {[%clk 0:14:50.1]} 10... d5 {[%clk 0:13:40.8]}
11. e5 {[%clk 0:14:25.8]} 11... Ne4 {[%clk 0:12:06.4]} 12. Bxe4 {[%clk
0:12:49.9]} 12... dxe4 {[%clk 0:12:08.9]} 13. b4 {[%clk 0:12:53.5]} 13... Nxb4
{[%clk 0:11:37.2]} 14. axb4 {[%clk 0:12:16.6]} 14... Qxb4 {[%clk 0:11:40.5]} 15.
Ne2 {[%clk 0:12:21.2]} 15... b6 {[%clk 0:10:44.4]} 16. O-O {[%clk 0:11:49.9]}
16... Ba6 {[%clk 0:10:27.8]} 17. Rc2 {[%clk 0:10:20]} 17... Bd3 {[%clk
0:09:24.2]} 18. Rd2 {[%clk 0:07:29.2]} 18... Qb5 {[%clk 0:08:36.3]} 19. Re1
{[%clk 0:07:31.7]} 19... Rfc8 {[%clk 0:07:15.4]} 20. Nc1 {[%clk 0:06:16.4]}
20... Rc3 {[%clk 0:05:17.1]} 21. Nxd3 {[%clk 0:05:58.3]} 21... exd3 {[%clk
0:03:06.2]} 22. Qf3 {[%clk 0:05:42]} 22... Rac8 {[%clk 0:02:35.4]} 23. Qb7
{[%clk 0:05:22]} 23... Rc1 {[%clk 0:01:44.2]} 24. Rdd1 {[%clk 0:05:25.4]} 24...
h6 {[%clk 0:00:58.7]} 25. Rxc1 {[%clk 0:05:21.6]} 25... Rxc1 {[%clk 0:00:53.6]}
26. Rxc1 {[%clk 0:05:26.5]} 26... Qb2 {[%clk 0:00:51.6]} 27. Qe4 {[%clk
0:04:49.2]} 27... g6 {[%clk 0:00:47.3]} 28. Qxd3 {[%clk 0:04:52.6]} 28... a5
{[%clk 0:00:44]} 29. Rb1 {[%clk 0:04:36.9]} 29... Qa2 {[%clk 0:00:30.9]} 30. Qb3
{[%clk 0:04:23.7]} 30... Qe2 {[%clk 0:00:22.3]} 31. Qxb6 {[%clk 0:04:26.4]}
31... a4 {[%clk 0:00:26.5]} 32. Qb5 {[%clk 0:04:25.8]} 32... a3 {[%clk
0:00:30.7]} 33. Qxe2 {[%clk 0:04:29.4]} 1-0

[Event "Live Chess"]
[Site "Chess.com"]
[Date "2023.09.16"]
[Round "-"]
[White "Lucas-LGM"]
[Black "Tercette"]
[Result "1-0"]
[WhiteElo "1568"]
[BlackElo "157"]
[TimeControl "900+5"]
[EndTime "16:35:53 PDT"]
[Termination "Lucas-LGM venceu por xeque-mate"]

1. e4 {[%clk 0:15:01.7]} 1... e5 {[%clk 0:14:59.6]} 2. Nf3 {[%clk 0:15:04.3]}
2... d5 {[%clk 0:14:56.5]} 3. exd5 {[%clk 0:15:06.2]} 3... c6 {[%clk 0:14:58.5]}
4. dxc6 {[%clk 0:15:09.8]} 4... bxc6 {[%clk 0:15:00.9]} 5. Nc3 {[%clk
0:15:13.2]} 5... Nd7 {[%clk 0:15:03.5]} 6. Bc4 {[%clk 0:15:17]} 6... Bd6 {[%clk
0:15:03.3]} 7. O-O {[%clk 0:15:21.1]} 7... Ne7 {[%clk 0:15:06.6]} 8. Re1 {[%clk
0:15:25.4]} 8... O-O {[%clk 0:15:10.1]} 9. d4 {[%clk 0:15:26.6]} 9... exd4
{[%clk 0:15:12.2]} 10. Qxd4 {[%clk 0:15:30.1]} 10... Nf5 {[%clk 0:15:09.1]} 11.
Qe4 {[%clk 0:15:18.1]} 11... Re8 {[%clk 0:15:09.3]} 12. Qxf5 {[%clk 0:15:20.1]}
12... g6 {[%clk 0:15:11.6]} 13. Qxf7+ {[%clk 0:15:17.9]} 13... Kh8 {[%clk
0:15:07.1]} 14. Bh6 {[%clk 0:15:20.2]} 14... Rg8 {[%clk 0:15:01.1]} 15. Qxg8+
{[%clk 0:14:58.6]} 15... Qxg8 {[%clk 0:15:02.3]} 16. Bxg8 {[%clk 0:15:02.7]}
16... Kxg8 {[%clk 0:15:05.4]} 17. Re8+ {[%clk 0:15:06.1]} 17... Kf7 {[%clk
0:15:07.3]} 18. Rae1 {[%clk 0:15:06.3]} 18... Nf6 {[%clk 0:15:08.9]} 19. Ng5#
{[%clk 0:15:06.1]} 1-0

[Event "Live Chess"]
[Site "Chess.com"]
[Date "2023.09.16"]
[Round "-"]
[White "ViniciusBritoFc"]
[Black "Yurxx21"]
[Result "1-0"]
[WhiteElo "1206"]
[BlackElo "1477"]
[TimeControl "900+5"]
[EndTime "16:36:31 PDT"]
[Termination "ViniciusBritoFc venceu por desistência"]

1. c4 {[%clk 0:15:04.6]} 1... c5 {[%clk 0:14:59.3]} 2. Nc3 {[%clk 0:15:08.9]}
2... Nc6 {[%clk 0:15:03.8]} 3. e4 {[%clk 0:15:13.5]} 3... g6 {[%clk 0:15:07.4]}
4. Nf3 {[%clk 0:15:17.3]} 4... Bg7 {[%clk 0:15:11.9]} 5. d3 {[%clk 0:15:21.8]}
5... e6 {[%clk 0:15:16.2]} 6. Bd2 {[%clk 0:15:26]} 6... Nge7 {[%clk 0:15:20.6]}
7. Be2 {[%clk 0:15:30.4]} 7... O-O {[%clk 0:15:25.1]} 8. O-O {[%clk 0:15:35.1]}
8... d5 {[%clk 0:15:23]} 9. exd5 {[%clk 0:15:37.2]} 9... exd5 {[%clk 0:15:27.9]}
10. cxd5 {[%clk 0:15:42.1]} 10... Nxd5 {[%clk 0:15:30.3]} 11. Nxd5 {[%clk
0:15:47]} 11... Qxd5 {[%clk 0:15:33.6]} 12. Rb1 {[%clk 0:15:51.9]} 12... b6
{[%clk 0:15:30.9]} 13. h3 {[%clk 0:15:47.2]} 13... Bb7 {[%clk 0:15:29.1]} 14.
Be3 {[%clk 0:15:49.6]} 14... Ne5 {[%clk 0:15:28.7]} 15. b3 {[%clk 0:15:47.4]}
15... Nxf3+ {[%clk 0:15:26.1]} 16. Bxf3 {[%clk 0:15:52.3]} 16... Qd7 {[%clk
0:15:28]} 17. Bxb7 {[%clk 0:15:55.1]} 17... Qxb7 {[%clk 0:15:32.9]} 18. Re1
{[%clk 0:15:40.8]} 18... Rfd8 {[%clk 0:15:34.2]} 19. Qc2 {[%clk 0:15:36.3]}
19... Qd5 {[%clk 0:15:19]} 20. Rbd1 {[%clk 0:15:37.1]} 20... Bd4 {[%clk
0:15:03.6]} 21. g3 {[%clk 0:15:13.9]} 21... Qf3 {[%clk 0:14:49.7]} 22. Bxd4
{[%clk 0:15:08]} 22... Rxd4 {[%clk 0:14:54.5]} 23. Re3 {[%clk 0:14:55.3]} 23...
Qh5 {[%clk 0:14:47.8]} 24. Kh2 {[%clk 0:14:56.1]} 24... Rad8 {[%clk 0:14:44.9]}
25. Rde1 {[%clk 0:14:45.2]} 25... Qf5 {[%clk 0:14:27.4]} 26. Re8+ {[%clk
0:14:42.1]} 26... Rxe8 {[%clk 0:14:30.4]} 27. Rxe8+ {[%clk 0:14:47]} 27... Kg7
{[%clk 0:14:34.3]} 28. Re3 {[%clk 0:14:40.6]} 28... h5 {[%clk 0:14:21.5]} 29.
Qc3 {[%clk 0:14:40.8]} 29... Kh6 {[%clk 0:14:15.3]} 30. Qd2 {[%clk 0:14:30.1]}
30... g5 {[%clk 0:14:10]} 31. h4 {[%clk 0:14:30.4]} 31... gxh4 {[%clk
0:13:57.9]} 32. Re5+ {[%clk 0:14:30.6]} 1-0

[Event "Live Chess"]
[Site "Chess.com"]
[Date "2023.09.16"]
[Round "-"]
[White "abcgames2904"]
[Black "GustavoFarinha"]
[Result "0-1"]
[WhiteElo "1202"]
[BlackElo "1693"]
[TimeControl "900+5"]
[EndTime "16:37:14 PDT"]
[Termination "GustavoFarinha venceu por xeque-mate"]

1. Nf3 {[%clk 0:15:02.4]} 1... Nf6 {[%clk 0:15:02.2]} 2. g3 {[%clk 0:15:00.5]}
2... g6 {[%clk 0:15:05.7]} 3. Bg2 {[%clk 0:15:05.4]} 3... Bg7 {[%clk 0:15:09.7]}
4. d4 {[%clk 0:15:09.7]} 4... d6 {[%clk 0:15:14]} 5. c4 {[%clk 0:15:10.8]} 5...
O-O {[%clk 0:15:17.5]} 6. Nc3 {[%clk 0:15:15.3]} 6... Nbd7 {[%clk 0:14:34.2]} 7.
e4 {[%clk 0:15:15.5]} 7... e5 {[%clk 0:14:38]} 8. d5 {[%clk 0:15:19.2]} 8... Ne8
{[%clk 0:13:21.5]} 9. Bg5 {[%clk 0:15:19.7]} 9... f6 {[%clk 0:13:20.7]} 10. Be3
{[%clk 0:15:21.7]} 10... f5 {[%clk 0:13:17.2]} 11. Bg5 {[%clk 0:15:23.3]} 11...
Ndf6 {[%clk 0:13:14.7]} 12. Qc2 {[%clk 0:15:23.4]} 12... h6 {[%clk 0:12:56.6]}
13. Be3 {[%clk 0:15:21.9]} 13... Ng4 {[%clk 0:12:53.4]} 14. h3 {[%clk
0:15:23.2]} 14... Nxe3 {[%clk 0:12:57]} 15. fxe3 {[%clk 0:15:26.2]} 15... fxe4
{[%clk 0:12:07.4]} 16. Nxe4 {[%clk 0:15:27]} 16... Nf6 {[%clk 0:12:06]} 17.
O-O-O {[%clk 0:15:28.7]} 17... Bf5 {[%clk 0:12:08]} 18. Nfd2 {[%clk 0:15:30.6]}
18... Nxe4 {[%clk 0:11:33.3]} 19. Nxe4 {[%clk 0:15:33]} 19... a5 {[%clk
0:11:01.7]} 20. g4 {[%clk 0:15:36.3]} 20... Bd7 {[%clk 0:10:38.3]} 21. a4 {[%clk
0:15:39.8]} 21... Qe7 {[%clk 0:10:25.1]} 22. b3 {[%clk 0:15:38.4]} 22... Rf7
{[%clk 0:10:24.3]} 23. Rhf1 {[%clk 0:15:41.8]} 23... Raf8 {[%clk 0:10:28.1]} 24.
Rxf7 {[%clk 0:15:45.5]} 24... Rxf7 {[%clk 0:10:30.1]} 25. c5 {[%clk 0:15:43.3]}
25... g5 {[%clk 0:08:45.7]} 26. c6 {[%clk 0:15:42.3]} 26... bxc6 {[%clk
0:08:49]} 27. dxc6 {[%clk 0:15:47.2]} 27... Be8 {[%clk 0:08:50.9]} 28. Ng3
{[%clk 0:15:47.5]} 28... Rf6 {[%clk 0:07:45.4]} 29. Nf5 {[%clk 0:15:49.2]} 29...
Qf8 {[%clk 0:06:57.2]} 30. e4 {[%clk 0:15:41.3]} 30... Bg6 {[%clk 0:06:48.9]}
31. Rd5 {[%clk 0:15:36.8]} 31... Bxf5 {[%clk 0:06:44.9]} 32. gxf5 {[%clk
0:15:36.9]} 32... Qa8 {[%clk 0:06:35.2]} 33. Qc4 {[%clk 0:15:37.4]} 33... Kf8
{[%clk 0:06:15.6]} 34. Rb5 {[%clk 0:15:25.4]} 34... Rf7 {[%clk 0:05:58.5]} 35.
Bf3 {[%clk 0:15:27.8]} 35... Re7 {[%clk 0:05:39.3]} 36. Qd5 {[%clk 0:15:18.9]}
36... Qa7 {[%clk 0:05:27.3]} 37. Rxa5 {[%clk 0:15:10.3]} 37... Qe3+ {[%clk
0:05:26.7]} 38. Kb2 {[%clk 0:15:12.6]} 38... Qxf3 {[%clk 0:05:07]} 39. Ra8+
{[%clk 0:15:14.6]} 39... Re8 {[%clk 0:05:10]} 40. Rxe8+ {[%clk 0:15:18.4]} 40...
Kxe8 {[%clk 0:05:13.8]} 41. Qg8+ {[%clk 0:15:22.8]} 41... Bf8 {[%clk 0:05:17.6]}
42. Qe6+ {[%clk 0:15:20.4]} 42... Be7 {[%clk 0:05:20.8]} 43. Qd7+ {[%clk
0:15:24.8]} 43... Kf7 {[%clk 0:05:20.4]} 44. Qxc7 {[%clk 0:15:27.7]} 44... Qxe4
{[%clk 0:05:19]} 45. Qd7 {[%clk 0:15:31.5]} 45... Qe2+ {[%clk 0:05:11.6]} 46.
Ka3 {[%clk 0:15:34.6]} 46... d5+ {[%clk 0:05:15.1]} 47. b4 {[%clk 0:15:32.1]}
47... Qd3+ {[%clk 0:05:13.4]} 48. Ka2 {[%clk 0:15:32.7]} 48... Qc4+ {[%clk
0:04:59]} 49. Kb1 {[%clk 0:15:34.9]} 49... Qxb4+ {[%clk 0:05:02.7]} 50. Kc1
{[%clk 0:15:37.7]} 50... Qe1+ {[%clk 0:05:04.8]} 51. Kc2 {[%clk 0:15:41.2]}
51... Qe2+ {[%clk 0:05:07.1]} 52. Kb1 {[%clk 0:15:44.3]} 52... Qd3+ {[%clk
0:04:44.8]} 53. Kc1 {[%clk 0:15:46.2]} 53... Qa3+ {[%clk 0:04:46.4]} 54. Kd1
{[%clk 0:15:49.7]} 54... Qxa4+ {[%clk 0:04:44.2]} 55. Ke2 {[%clk 0:15:53]} 55...
Qb5+ {[%clk 0:04:40.9]} 56. Kf3 {[%clk 0:15:55.5]} 56... e4+ {[%clk 0:04:39.2]}
57. Kg4 {[%clk 0:15:59.5]} 57... Qe2+ {[%clk 0:04:41.9]} 58. Kg3 {[%clk
0:16:03.2]} 58... Qf3+ {[%clk 0:04:38.9]} 59. Kh2 {[%clk 0:16:06.4]} 59... g4
{[%clk 0:04:22.7]} 60. hxg4 {[%clk 0:16:03.6]} 60... Qf2+ {[%clk 0:04:13.8]} 61.
Kh3 {[%clk 0:16:06.3]} 61... Qf1+ {[%clk 0:04:12.7]} 62. Kg3 {[%clk 0:16:09.7]}
62... Qg1+ {[%clk 0:04:08.4]} 63. Kf4 {[%clk 0:16:13]} 63... Qh2+ {[%clk
0:04:10.7]} 64. Ke3 {[%clk 0:16:16]} 64... Qg3+ {[%clk 0:04:14.3]} 65. Kd4
{[%clk 0:16:18.7]} 65... Qd3+ {[%clk 0:04:18]} 66. Ke5 {[%clk 0:16:21.7]} 66...
Qg3+ {[%clk 0:04:01]} 67. Kxd5 {[%clk 0:16:24.7]} 67... Qd3+ {[%clk 0:03:57.3]}
68. Ke5 {[%clk 0:16:27.8]} 68... Qxd7 {[%clk 0:03:47.8]} 69. cxd7 {[%clk
0:16:32.7]} 69... e3 {[%clk 0:03:51.7]} 70. f6 {[%clk 0:16:34.1]} 70... Bxf6+
{[%clk 0:03:53]} 71. Kf4 {[%clk 0:16:33.9]} 71... e2 {[%clk 0:03:57.4]} 72. g5
{[%clk 0:16:35]} 72... hxg5+ {[%clk 0:04:00.1]} 73. Kf5 {[%clk 0:16:39.9]} 73...
e1=Q {[%clk 0:04:03]} 74. d8=Q {[%clk 0:16:44.8]} 74... Qf2+ {[%clk 0:04:01]}
75. Kg4 {[%clk 0:16:49.7]} 75... Bxd8 {[%clk 0:04:02.9]} 76. Kh5 {[%clk
0:16:54.6]} 76... Qh4# {[%clk 0:04:06.9]} 0-1